[Event "*** Monthly 3|2 Blitz Masters"]
[Site "Chess.com"]
[Date "2014.11.25"]
[Round "5"]
[White "esr44"]
[Black "patzerplay"]
[Result "0-1"]
[WhiteElo "2042"]
[BlackElo "2100"]
[TimeControl "180+2"]
[EndTime "11:55:46 PST"]
[Termination "patzerplay won on time"]

1. d4 {[%clk 0:03:00]} 1... Nf6 {[%clk 0:02:58.1]} 2. Bg5 {[%clk 0:03:01]} 2...
Ne4 {[%clk 0:02:58.9]} 3. Bf4 {[%clk 0:03:02.2]} 3... c5 {[%clk 0:03:00]} 4. f3
{[%clk 0:03:03.5]} 4... Qa5+ {[%clk 0:03:00.9]} 5. c3 {[%clk 0:03:04.3]} 5...
Nf6 {[%clk 0:03:01.9]} 6. d5 {[%clk 0:03:05.1]} 6... Qb6 {[%clk 0:02:58.5]} 7.
e4 {[%clk 0:03:00.1]} 7... e6 {[%clk 0:02:48.6]} 8. c4 {[%clk 0:02:52.1]} 8...
exd5 {[%clk 0:02:40.7]} 9. cxd5 {[%clk 0:02:50.4]} 9... d6 {[%clk 0:02:41.3]}
10. Qb3 {[%clk 0:02:47.5]} 10... g6 {[%clk 0:02:36.6]} 11. Bb5+ {[%clk
0:02:43.8]} 11... Bd7 {[%clk 0:02:37.6]} 12. Nc3 {[%clk 0:02:41.2]} 12... a6
{[%clk 0:02:32.4]} 13. Bxd7+ {[%clk 0:02:41.3]} 13... Nbxd7 {[%clk 0:02:34.3]}
14. Qxb6 {[%clk 0:02:25.1]} 14... Nxb6 {[%clk 0:02:34.1]} 15. Nge2 {[%clk
0:02:23.4]} 15... Nc4 {[%clk 0:02:34.8]} 16. O-O-O {[%clk 0:02:20.1]} 16... b5
{[%clk 0:02:34]} 17. Rhe1 {[%clk 0:02:15.6]} 17... O-O-O {[%clk 0:02:34.2]} 18.
Bg5 {[%clk 0:02:09.7]} 18... Bg7 {[%clk 0:02:34.6]} 19. Kb1 {[%clk 0:01:51.2]}
19... h6 {[%clk 0:02:35.3]} 20. Bh4 {[%clk 0:01:50.8]} 20... g5 {[%clk
0:02:35.4]} 21. Bf2 {[%clk 0:01:48.3]} 21... Nd7 {[%clk 0:02:34.9]} 22. Ng3
{[%clk 0:01:37]} 22... Ndb6 {[%clk 0:02:32.9]} 23. Nf5 {[%clk 0:01:37.6]} 23...
Be5 {[%clk 0:02:33.9]} 24. g3 {[%clk 0:01:22]} 24... b4 {[%clk 0:02:35.1]} 25.
f4 {[%clk 0:01:06.1]} 25... gxf4 {[%clk 0:02:29.8]} 26. gxf4 {[%clk 0:01:06.9]}
26... Bxf4 {[%clk 0:02:31.7]} 27. Ne2 {[%clk 0:01:07.8]} 27... Be5 {[%clk
0:02:32.9]} 28. Bg3 {[%clk 0:00:51.7]} 28... Bxb2 {[%clk 0:02:25]} 29. Nxd6+
{[%clk 0:00:34.1]} 29... Nxd6 {[%clk 0:02:22.6]} 30. Kxb2 {[%clk 0:00:33.5]}
30... Nxe4 {[%clk 0:02:21.9]} 31. Nf4 {[%clk 0:00:28.6]} 31... f5 {[%clk
0:02:22.4]} 32. Ne6 {[%clk 0:00:22.7]} 32... Rxd5 {[%clk 0:02:20.4]} 33. Rxd5
{[%clk 0:00:22.6]} 33... Nxd5 {[%clk 0:02:22.3]} 34. Rc1 {[%clk 0:00:19.1]}
34... Ndc3 {[%clk 0:02:21.2]} 35. Be5 {[%clk 0:00:17.1]} 35... Re8 {[%clk
0:02:21.8]} 36. Nxc5 {[%clk 0:00:06.2]} 36... Nxc5 {[%clk 0:02:18.3]} 37. Bxc3
{[%clk 0:00:05.8]} 37... Nd3+ {[%clk 0:02:17.2]} 0-1

[Event "*** Monthly 3|2 Blitz Masters"]
[Site "Chess.com"]
[Date "2014.11.25"]
[Round "5"]
[White "IMLevAltounian"]
[Black "jlandaw"]
[Result "0-1"]
[WhiteElo "2179"]
[BlackElo "2275"]
[TimeControl "180+2"]
[EndTime "11:55:54 PST"]
[Termination "jlandaw won by resignation"]

1. Nf3 {[%clk 0:03:00]} 1... Nf6 {[%clk 0:02:58.2]} 2. c4 {[%clk 0:03:01.5]}
2... c6 {[%clk 0:02:55.5]} 3. g3 {[%clk 0:03:00.9]} 3... d5 {[%clk 0:02:56.3]}
4. Bg2 {[%clk 0:03:01.6]} 4... e6 {[%clk 0:02:57.8]} 5. b3 {[%clk 0:02:59.4]}
5... g6 {[%clk 0:02:58]} 6. Bb2 {[%clk 0:03:00.3]} 6... Bg7 {[%clk 0:02:59.3]}
7. O-O {[%clk 0:03:01.7]} 7... O-O {[%clk 0:03:00.5]} 8. d4 {[%clk 0:02:57.8]}
8... b6 {[%clk 0:02:59.9]} 9. Nbd2 {[%clk 0:02:58]} 9... Re8 {[%clk 0:02:57.7]}
10. Qc2 {[%clk 0:02:58.3]} 10... Bb7 {[%clk 0:02:54.1]} 11. e4 {[%clk
0:02:59.2]} 11... dxe4 {[%clk 0:02:55.1]} 12. Nxe4 {[%clk 0:03:00.8]} 12... Nxe4
{[%clk 0:02:55]} 13. Qxe4 {[%clk 0:03:02.7]} 13... Nd7 {[%clk 0:02:56.5]} 14.
Rfd1 {[%clk 0:03:02.7]} 14... Qc7 {[%clk 0:02:55.4]} 15. Ne5 {[%clk 0:02:52.8]}
15... Rad8 {[%clk 0:02:49.8]} 16. f4 {[%clk 0:02:52.5]} 16... Nxe5 {[%clk
0:02:36.2]} 17. dxe5 {[%clk 0:02:52.7]} 17... Rd7 {[%clk 0:02:33.9]} 18. Ba3
{[%clk 0:02:37.4]} 18... Bf8 {[%clk 0:02:25.2]} 19. Bxf8 {[%clk 0:02:33.1]}
19... Rxf8 {[%clk 0:02:27.1]} 20. Rd3 {[%clk 0:02:16.8]} 20... Rfd8 {[%clk
0:02:22.9]} 21. Rad1 {[%clk 0:02:15.1]} 21... Kg7 {[%clk 0:01:18.9]} 22. Rd6
{[%clk 0:02:08.5]} 22... c5 {[%clk 0:01:11.5]} 23. Qd3 {[%clk 0:01:51.4]} 23...
Rxd6 {[%clk 0:01:00.5]} 24. exd6 {[%clk 0:01:53]} 24... Qd7 {[%clk 0:01:00.1]}
25. Qc3+ {[%clk 0:01:52.5]} 25... f6 {[%clk 0:01:00.8]} 26. Bf3 {[%clk
0:01:36.3]} 26... Kf7 {[%clk 0:00:55.5]} 27. Kf2 {[%clk 0:01:36.5]} 27... Bc6
{[%clk 0:00:52.3]} 28. b4 {[%clk 0:01:22.9]} 28... Bxf3 {[%clk 0:00:48.6]} 29.
Kxf3 {[%clk 0:01:23.2]} 29... Qc6+ {[%clk 0:00:49.4]} 30. Ke3 {[%clk 0:01:13.8]}
30... Rxd6 {[%clk 0:00:49.6]} 31. b5 {[%clk 0:01:12.1]} 31... Qd7 {[%clk
0:00:39.1]} 32. Rxd6 {[%clk 0:01:08]} 32... Qxd6 {[%clk 0:00:41]} 33. a4 {[%clk
0:01:03.9]} 33... e5 {[%clk 0:00:41.1]} 34. a5 {[%clk 0:01:03.1]} 34... Qd4+
{[%clk 0:00:40.7]} 0-1

[Event "*** Monthly 3|2 Blitz Masters"]
[Site "Chess.com"]
[Date "2014.11.25"]
[Round "5"]
[White "pedromartinez91"]
[Black "stepanosinovsky"]
[Result "1-0"]
[WhiteElo "2073"]
[BlackElo "2269"]
[TimeControl "180+2"]
[EndTime "11:56:32 PST"]
[Termination "pedromartinez91 won by resignation"]

1. e4 {[%clk 0:03:00]} 1... e5 {[%clk 0:02:58.5]} 2. Nf3 {[%clk 0:03:00.2]} 2...
Nc6 {[%clk 0:03:00.1]} 3. Bb5 {[%clk 0:03:00.8]} 3... a6 {[%clk 0:03:01.6]} 4.
Bxc6 {[%clk 0:03:02]} 4... dxc6 {[%clk 0:03:03.5]} 5. O-O {[%clk 0:03:03.1]}
5... f5 {[%clk 0:03:04]} 6. Nxe5 {[%clk 0:03:03.3]} 6... Nf6 {[%clk 0:03:02.1]}
7. exf5 {[%clk 0:03:04.2]} 7... Bxf5 {[%clk 0:03:01.9]} 8. Re1 {[%clk
0:03:04.6]} 8... Be7 {[%clk 0:03:02.6]} 9. Qf3 {[%clk 0:03:03.1]} 9... Bxc2
{[%clk 0:02:50.5]} 10. Na3 {[%clk 0:02:57.9]} 10... Bg6 {[%clk 0:02:37.4]} 11.
Nxg6 {[%clk 0:02:57.4]} 11... hxg6 {[%clk 0:02:39.3]} 12. Nc4 {[%clk 0:02:56.5]}
12... Qd5 {[%clk 0:02:29.4]} 13. Qe2 {[%clk 0:02:53.1]} 13... O-O-O {[%clk
0:02:24.9]} 14. d3 {[%clk 0:02:48.2]} 14... Bc5 {[%clk 0:02:13.8]} 15. Be3
{[%clk 0:02:44]} 15... Bxe3 {[%clk 0:02:03]} 16. Qxe3 {[%clk 0:02:43.5]} 16...
Qxd3 {[%clk 0:02:01.8]} 17. Qe6+ {[%clk 0:02:05.6]} 17... Kb8 {[%clk 0:02:01]}
18. Ne5 {[%clk 0:02:06.8]} 18... Qd4 {[%clk 0:01:33.6]} 19. Qb3 {[%clk
0:02:04.3]} 19... Qd5 {[%clk 0:01:15.1]} 20. Nf7 {[%clk 0:02:02.6]} 20... Qxb3
{[%clk 0:00:23.1]} 21. axb3 {[%clk 0:02:02.5]} 21... Nd5 {[%clk 0:00:23]} 22.
Nxh8 {[%clk 0:02:02.3]} 22... Rxh8 {[%clk 0:00:24]} 23. Re6 {[%clk 0:02:03.2]}
23... g5 {[%clk 0:00:19.1]} 24. Rg6 {[%clk 0:02:03.4]} 24... Re8 {[%clk
0:00:19]} 25. Rxg5 {[%clk 0:02:02.8]} 25... Re7 {[%clk 0:00:19.9]} 26. Kf1
{[%clk 0:02:02.6]} 26... Ka7 {[%clk 0:00:20.4]} 27. Re1 {[%clk 0:02:03]} 27...
Rd7 {[%clk 0:00:20.4]} 28. h4 {[%clk 0:02:03.4]} 28... b5 {[%clk 0:00:20.4]} 29.
Re6 {[%clk 0:02:04]} 29... Kb7 {[%clk 0:00:20.2]} 30. Reg6 {[%clk 0:02:04.6]}
30... Nf4 {[%clk 0:00:20.3]} 31. Kg1 {[%clk 0:02:00.4]} 31... Nxg6 {[%clk
0:00:18.6]} 32. Rxg6 {[%clk 0:02:01.7]} 32... a5 {[%clk 0:00:20]} 33. g4 {[%clk
0:02:02.9]} 33... c5 {[%clk 0:00:20.4]} 34. f4 {[%clk 0:02:04.1]} 34... c4
{[%clk 0:00:17.2]} 35. bxc4 {[%clk 0:02:04.5]} 35... b4 {[%clk 0:00:18.6]} 36.
f5 {[%clk 0:02:05.3]} 36... a4 {[%clk 0:00:19.7]} 37. Re6 {[%clk 0:02:00.7]}
37... Rd4 {[%clk 0:00:14.8]} 38. Re5 {[%clk 0:01:55.9]} 38... Rxg4+ {[%clk
0:00:15.4]} 39. Kf2 {[%clk 0:01:56.3]} 39... Rxh4 {[%clk 0:00:16.1]} 40. Rb5+
{[%clk 0:01:57.2]} 40... Kc6 {[%clk 0:00:15.8]} 41. Rxb4 {[%clk 0:01:58.5]}
41... Rf4+ {[%clk 0:00:13.4]} 42. Ke3 {[%clk 0:01:59.6]} 42... Rxf5 {[%clk
0:00:15.3]} 43. Rxa4 {[%clk 0:02:01.2]} 43... Kc5 {[%clk 0:00:16.4]} 44. Ra5+
{[%clk 0:02:00.4]} 1-0

[Event "*** Monthly 3|2 Blitz Masters"]
[Site "Chess.com"]
[Date "2014.11.25"]
[Round "5"]
[White "juniortay"]
[Black "Hafez_Bakr"]
[Result "0-1"]
[WhiteElo "2183"]
[BlackElo "1791"]
[TimeControl "180+2"]
[EndTime "11:56:33 PST"]
[Termination "Hafez_Bakr won by resignation"]

1. e4 {[%clk 0:03:00]} 1... c5 {[%clk 0:02:58.5]} 2. Nf3 {[%clk 0:02:58.4]} 2...
d6 {[%clk 0:02:59.7]} 3. d4 {[%clk 0:02:59.6]} 3... cxd4 {[%clk 0:03:01.6]} 4.
Qxd4 {[%clk 0:03:01.5]} 4... Nf6 {[%clk 0:03:03.4]} 5. e5 {[%clk 0:03:02.8]}
5... Nc6 {[%clk 0:03:01.8]} 6. Bb5 {[%clk 0:03:03.7]} 6... Qa5+ {[%clk
0:03:02.1]} 7. Nc3 {[%clk 0:03:04.1]} 7... dxe5 {[%clk 0:03:01.9]} 8. Qxe5
{[%clk 0:02:59.5]} 8... Bd7 {[%clk 0:02:56.5]} 9. Bxc6 {[%clk 0:02:51.5]} 9...
Qxe5+ {[%clk 0:02:56.2]} 10. Nxe5 {[%clk 0:02:53.4]} 10... bxc6 {[%clk
0:02:55.9]} 11. Bg5 {[%clk 0:02:50.3]} 11... Nd5 {[%clk 0:02:49.9]} 12. Nxd5
{[%clk 0:02:45.6]} 12... cxd5 {[%clk 0:02:50.2]} 13. O-O-O {[%clk 0:02:43.2]}
13... e6 {[%clk 0:02:50.6]} 14. Kb1 {[%clk 0:02:26.4]} 14... Bb5 {[%clk
0:02:35.5]} 15. Bh4 {[%clk 0:01:52.6]} 15... f6 {[%clk 0:02:35.5]} 16. Nd3
{[%clk 0:01:53.6]} 16... Bd6 {[%clk 0:02:34.8]} 17. Bg3 {[%clk 0:01:43.1]} 17...
e5 {[%clk 0:02:28.9]} 18. f4 {[%clk 0:01:16.8]} 18... e4 {[%clk 0:02:28.5]} 19.
Nf2 {[%clk 0:01:05.9]} 19... O-O-O {[%clk 0:02:27.4]} 20. Rxd5 {[%clk
0:00:47.8]} 20... Bc6 {[%clk 0:02:27.8]} 21. Rdd1 {[%clk 0:00:41.9]} 21... e3
{[%clk 0:02:27.8]} 22. Nd3 {[%clk 0:00:43]} 22... Bxg2 {[%clk 0:02:28]} 23. Rhg1
{[%clk 0:00:44.6]} 23... Bf3 {[%clk 0:02:24]} 24. Rdf1 {[%clk 0:00:40.8]} 24...
Bh5 {[%clk 0:02:22]} 25. f5 {[%clk 0:00:32]} 25... e2 {[%clk 0:02:18.9]} 26. Re1
{[%clk 0:00:32.5]} 26... Rhe8 {[%clk 0:02:14.5]} 27. Kc1 {[%clk 0:00:27.7]}
27... g5 {[%clk 0:02:01]} 28. fxg6 {[%clk 0:00:23.2]} 28... hxg6 {[%clk
0:02:00.7]} 29. Bxd6 {[%clk 0:00:24.3]} 29... Rxd6 {[%clk 0:02:01.2]} 30. Kd2
{[%clk 0:00:17.8]} 30... Ra6 {[%clk 0:02:00.4]} 31. a3 {[%clk 0:00:18.5]} 31...
Rb6 {[%clk 0:01:58.6]} 32. b3 {[%clk 0:00:18.3]} 32... Rbe6 {[%clk 0:01:58]} 33.
Rg3 {[%clk 0:00:18.1]} 33... Re4 {[%clk 0:01:57.5]} 34. a4 {[%clk 0:00:16.1]}
34... Rh4 {[%clk 0:01:57.2]} 35. h3 {[%clk 0:00:16.8]} 35... f5 {[%clk
0:01:54.3]} 36. b4 {[%clk 0:00:14.4]} 36... Rhe4 {[%clk 0:01:52.7]} 37. b5
{[%clk 0:00:08.5]} 37... Rxa4 {[%clk 0:01:50.3]} 38. Re3 {[%clk 0:00:08.4]}
38... Rae4 {[%clk 0:01:50]} 39. Rxe4 {[%clk 0:00:09.1]} 39... Rxe4 {[%clk
0:01:49.9]} 40. c4 {[%clk 0:00:10.5]} 40... Rxc4 {[%clk 0:01:49.8]} 41. Ne5
{[%clk 0:00:09.9]} 41... Rb4 {[%clk 0:01:47.3]} 0-1

[Event "*** Monthly 3|2 Blitz Masters"]
[Site "Chess.com"]
[Date "2014.11.25"]
[Round "5"]
[White "alturas_pacificas"]
[Black "RitvarsReimanis"]
[Result "0-1"]
[WhiteElo "2052"]
[BlackElo "2248"]
[TimeControl "180+2"]
[EndTime "11:57:26 PST"]
[Termination "RitvarsReimanis won by resignation"]

1. d4 {[%clk 0:03:00]} 1... Nf6 {[%clk 0:02:58.4]} 2. Bf4 {[%clk 0:02:57.8]}
2... g6 {[%clk 0:02:58.5]} 3. e3 {[%clk 0:02:58.9]} 3... Bg7 {[%clk 0:02:59.9]}
4. Nf3 {[%clk 0:03:00.2]} 4... O-O {[%clk 0:03:01.4]} 5. Be2 {[%clk 0:03:00.6]}
5... c5 {[%clk 0:03:02.2]} 6. c3 {[%clk 0:03:01.4]} 6... cxd4 {[%clk 0:03:02.2]}
7. exd4 {[%clk 0:03:01.9]} 7... a5 {[%clk 0:03:03.4]} 8. Nbd2 {[%clk 0:03:01.7]}
8... a4 {[%clk 0:03:04.7]} 9. Nc4 {[%clk 0:02:58.2]} 9... d5 {[%clk 0:03:03.1]}
10. Nce5 {[%clk 0:02:59]} 10... Ne4 {[%clk 0:03:03.7]} 11. Nd2 {[%clk
0:02:52.2]} 11... a3 {[%clk 0:03:03.4]} 12. Nxe4 {[%clk 0:02:52.2]} 12... axb2
{[%clk 0:03:04.7]} 13. Rb1 {[%clk 0:02:50.1]} 13... dxe4 {[%clk 0:03:05.8]} 14.
Rxb2 {[%clk 0:02:50.3]} 14... Qa5 {[%clk 0:03:04.8]} 15. Qd2 {[%clk 0:02:36.6]}
15... Nc6 {[%clk 0:03:03.2]} 16. Nc4 {[%clk 0:02:33.7]} 16... Qd8 {[%clk
0:02:54.8]} 17. Nb6 {[%clk 0:02:31.8]} 17... Ra3 {[%clk 0:02:51.7]} 18. O-O
{[%clk 0:02:19.1]} 18... e5 {[%clk 0:02:48.6]} 19. Nc4 {[%clk 0:01:58.2]} 19...
exf4 {[%clk 0:02:20.4]} 20. Nxa3 {[%clk 0:01:58.9]} 20... Re8 {[%clk 0:02:15.7]}
21. Qxf4 {[%clk 0:01:54.8]} 21... Qa5 {[%clk 0:02:16.3]} 22. Nb5 {[%clk
0:01:49.4]} 22... Bf8 {[%clk 0:01:59.6]} 23. c4 {[%clk 0:01:44.3]} 23... Nd8
{[%clk 0:01:41]} 24. Nc7 {[%clk 0:01:36.6]} 24... Ne6 {[%clk 0:01:33]} 25. Nxe6
{[%clk 0:01:32]} 25... Rxe6 {[%clk 0:01:34.9]} 26. d5 {[%clk 0:01:27.8]} 26...
Re8 {[%clk 0:01:26.7]} 27. d6 {[%clk 0:01:23.4]} 27... Qc3 {[%clk 0:01:12.2]}
28. Rd2 {[%clk 0:01:15.2]} 28... Bd7 {[%clk 0:01:02]} 29. Rfd1 {[%clk
0:01:06.3]} 29... Bg7 {[%clk 0:00:57.2]} 30. Rd5 {[%clk 0:00:56.3]} 30... Qb2
{[%clk 0:00:50.5]} 31. h3 {[%clk 0:00:46.8]} 31... Qxe2 {[%clk 0:00:49.3]} 32.
c5 {[%clk 0:00:43.3]} 32... Qa6 {[%clk 0:00:29.4]} 33. Re1 {[%clk 0:00:38.6]}
33... Qxa2 {[%clk 0:00:28.1]} 34. Rd2 {[%clk 0:00:36.2]} 34... Qe6 {[%clk
0:00:27.4]} 35. Rde2 {[%clk 0:00:36.8]} 35... Bc6 {[%clk 0:00:27.9]} 36. f3
{[%clk 0:00:36.9]} 36... Bd4+ {[%clk 0:00:28.3]} 37. Kh1 {[%clk 0:00:37.3]}
37... Bxc5 {[%clk 0:00:29.2]} 38. fxe4 {[%clk 0:00:36.2]} 38... Bxd6 {[%clk
0:00:30]} 39. e5 {[%clk 0:00:37.8]} 39... Bf8 {[%clk 0:00:29.5]} 40. Rd1 {[%clk
0:00:35.6]} 40... Qxh3+ {[%clk 0:00:29.3]} 41. Kg1 {[%clk 0:00:35.6]} 41... Qe6
{[%clk 0:00:27.9]} 42. Rc2 {[%clk 0:00:34.2]} 42... Qxe5 {[%clk 0:00:23.8]} 43.
Qxe5 {[%clk 0:00:35.4]} 43... Rxe5 {[%clk 0:00:25.7]} 0-1

[Event "*** Monthly 3|2 Blitz Masters"]
[Site "Chess.com"]
[Date "2014.11.25"]
[Round "5"]
[White "GulamaliRises"]
[Black "Byniolus"]
[Result "1-0"]
[WhiteElo "2427"]
[BlackElo "2294"]
[TimeControl "180+2"]
[EndTime "11:57:41 PST"]
[Termination "GulamaliRises won by resignation"]

1. e4 {[%clk 0:03:00]} 1... d6 {[%clk 0:02:58.9]} 2. d4 {[%clk 0:03:01.3]} 2...
Nf6 {[%clk 0:03:00.8]} 3. Nc3 {[%clk 0:03:02.8]} 3... c6 {[%clk 0:03:02.2]} 4.
Nf3 {[%clk 0:03:01.1]} 4... Bg4 {[%clk 0:03:02.7]} 5. h3 {[%clk 0:02:58.4]} 5...
Bh5 {[%clk 0:03:03.6]} 6. g4 {[%clk 0:02:59.7]} 6... Bg6 {[%clk 0:03:04.8]} 7.
Qe2 {[%clk 0:03:00.9]} 7... e6 {[%clk 0:03:05.6]} 8. Nh4 {[%clk 0:02:23.8]} 8...
Bxe4 {[%clk 0:03:00.3]} 9. f3 {[%clk 0:02:15.9]} 9... Bg6 {[%clk 0:02:59]} 10.
Nxg6 {[%clk 0:02:08.4]} 10... hxg6 {[%clk 0:02:59.6]} 11. Bd2 {[%clk 0:02:10.3]}
11... Nbd7 {[%clk 0:02:55.1]} 12. O-O-O {[%clk 0:02:09.7]} 12... Qb6 {[%clk
0:02:55.2]} 13. Be3 {[%clk 0:02:05.7]} 13... Nd5 {[%clk 0:02:54.6]} 14. Ne4
{[%clk 0:02:06.8]} 14... Nxe3 {[%clk 0:02:53.1]} 15. Qxe3 {[%clk 0:02:08.7]}
15... d5 {[%clk 0:02:52.6]} 16. Ng5 {[%clk 0:02:06.8]} 16... Bd6 {[%clk
0:02:51.7]} 17. Nxe6 {[%clk 0:02:02]} 17... fxe6 {[%clk 0:02:41.6]} 18. Qxe6+
{[%clk 0:02:03.9]} 18... Be7 {[%clk 0:02:41.5]} 19. Re1 {[%clk 0:02:04.7]} 19...
O-O-O {[%clk 0:02:36]} 20. Qxe7 {[%clk 0:02:05.5]} 20... Qxd4 {[%clk 0:02:36.5]}
21. Bd3 {[%clk 0:02:06.3]} 21... Rde8 {[%clk 0:02:11.2]} 22. Qg5 {[%clk
0:01:59.3]} 22... Ne5 {[%clk 0:02:02.3]} 23. Bxg6 {[%clk 0:01:56.3]} 23... Nc4
{[%clk 0:01:34.6]} 24. Rxe8+ {[%clk 0:01:16.2]} 24... Rxe8 {[%clk 0:01:35.3]}
25. Bxe8 {[%clk 0:01:18.1]} 25... Qxb2+ {[%clk 0:01:35.2]} 26. Kd1 {[%clk
0:01:19.8]} 26... Qa1+ {[%clk 0:01:25.9]} 27. Qc1 {[%clk 0:01:19.6]} 27... Qd4+
{[%clk 0:01:26.5]} 28. Ke2 {[%clk 0:01:21.3]} 28... Qe5+ {[%clk 0:01:21.7]} 29.
Kf2 {[%clk 0:01:22.5]} 29... Qxe8 {[%clk 0:01:21]} 30. Qf4 {[%clk 0:01:23.1]}
30... g5 {[%clk 0:00:29.7]} 31. Qxg5 {[%clk 0:01:15.6]} 31... Kc7 {[%clk
0:00:31]} 32. Qf4+ {[%clk 0:01:15.2]} 32... Kb6 {[%clk 0:00:32.1]} 33. h4 {[%clk
0:01:16]} 33... Qg6 {[%clk 0:00:30.5]} 34. h5 {[%clk 0:01:02.3]} 34... Qxc2+
{[%clk 0:00:29.8]} 35. Kg3 {[%clk 0:01:03.6]} 35... c5 {[%clk 0:00:16.4]} 36. h6
{[%clk 0:01:02.8]} 36... d4 {[%clk 0:00:18.3]} 37. h7 {[%clk 0:01:02.3]} 37...
Ne3 {[%clk 0:00:20.2]} 38. Qxe3 {[%clk 0:00:55.3]} 38... dxe3 {[%clk 0:00:20.1]}
39. h8=Q {[%clk 0:00:56.8]} 39... Qf2+ {[%clk 0:00:20.6]} 40. Kf4 {[%clk
0:00:58.2]} 40... e2 {[%clk 0:00:22.3]} 41. Qb2+ {[%clk 0:00:46.2]} 41... Kc7
{[%clk 0:00:21.8]} 42. Rh7+ {[%clk 0:00:46.1]} 42... Kd6 {[%clk 0:00:23.3]} 43.
Rh6+ {[%clk 0:00:25.4]} 43... Kd5 {[%clk 0:00:23]} 44. Qxb7+ {[%clk 0:00:26.2]}
44... Kc4 {[%clk 0:00:23.7]} 45. Qb3+ {[%clk 0:00:27.1]} 1-0

[Event "*** Monthly 3|2 Blitz Masters"]
[Site "Chess.com"]
[Date "2014.11.25"]
[Round "5"]
[White "VSERGUEI"]
[Black "MattyDPerrine"]
[Result "1-0"]
[WhiteElo "2331"]
[BlackElo "2034"]
[TimeControl "180+2"]
[EndTime "11:58:05 PST"]
[Termination "VSERGUEI won by resignation"]

1. d4 {[%clk 0:02:53.3]} 1... Nf6 {[%clk 0:02:58]} 2. c4 {[%clk 0:02:54.8]} 2...
c5 {[%clk 0:02:58.8]} 3. Nc3 {[%clk 0:02:56.4]} 3... cxd4 {[%clk 0:02:59.8]} 4.
Qxd4 {[%clk 0:02:56.5]} 4... Nc6 {[%clk 0:03:01.2]} 5. Qd2 {[%clk 0:02:57.2]}
5... e6 {[%clk 0:02:58.3]} 6. Nf3 {[%clk 0:02:50.5]} 6... d5 {[%clk 0:02:59.2]}
7. cxd5 {[%clk 0:02:47.8]} 7... exd5 {[%clk 0:03:01]} 8. e3 {[%clk 0:02:48.3]}
8... Bb4 {[%clk 0:02:17.3]} 9. Bd3 {[%clk 0:02:48.2]} 9... Bg4 {[%clk
0:01:56.1]} 10. a3 {[%clk 0:02:47.5]} 10... Bd6 {[%clk 0:01:46.9]} 11. Nd4
{[%clk 0:02:42.5]} 11... Nxd4 {[%clk 0:01:16.4]} 12. exd4 {[%clk 0:02:43.6]}
12... O-O {[%clk 0:01:09.8]} 13. O-O {[%clk 0:02:43]} 13... Re8 {[%clk
0:01:08.8]} 14. Qg5 {[%clk 0:02:34.7]} 14... Be6 {[%clk 0:01:08.6]} 15. Qh4
{[%clk 0:02:31.3]} 15... h6 {[%clk 0:00:56.4]} 16. h3 {[%clk 0:02:20.9]} 16...
Nd7 {[%clk 0:00:37.7]} 17. Qh5 {[%clk 0:02:12.7]} 17... Nf6 {[%clk 0:00:37.4]}
18. Qf3 {[%clk 0:02:12.6]} 18... Qb6 {[%clk 0:00:27.7]} 19. Bxh6 {[%clk
0:02:10.1]} 19... Qxd4 {[%clk 0:00:28.3]} 20. Nb5 {[%clk 0:02:05.8]} 20... Qe5
{[%clk 0:00:21.3]} 21. Nxd6 {[%clk 0:02:04.6]} 21... Qxd6 {[%clk 0:00:23.2]} 22.
Bf4 {[%clk 0:01:57]} 22... Qb6 {[%clk 0:00:13.9]} 23. Rfe1 {[%clk 0:01:53.5]}
23... d4 {[%clk 0:00:11.2]} 24. Be5 {[%clk 0:01:51.2]} 24... Nd7 {[%clk
0:00:12.6]} 25. Qh5 {[%clk 0:01:46.3]} 25... Nxe5 {[%clk 0:00:13.3]} 26. Qh7+
{[%clk 0:01:46.4]} 26... Kf8 {[%clk 0:00:14.4]} 27. Rxe5 {[%clk 0:01:46.3]}
27... Qxb2 {[%clk 0:00:10.2]} 28. Rae1 {[%clk 0:01:45.6]} 28... Qc3 {[%clk
0:00:10.9]} 29. Bb5 {[%clk 0:01:39.8]} 29... Red8 {[%clk 0:00:09.4]} 30. Qh8+
{[%clk 0:01:39.1]} 30... Ke7 {[%clk 0:00:10.7]} 31. Qxg7 {[%clk 0:01:39.6]}
31... Rd6 {[%clk 0:00:11.3]} 32. Qg5+ {[%clk 0:01:36.8]} 32... Kf8 {[%clk
0:00:11.1]} 33. Qh6+ {[%clk 0:01:31.7]} 33... Ke7 {[%clk 0:00:11.8]} 34. Qh4+
{[%clk 0:01:32.5]} 34... Kf8 {[%clk 0:00:08.5]} 35. Qh8+ {[%clk 0:01:33]} 35...
Ke7 {[%clk 0:00:10.2]} 36. Qxa8 {[%clk 0:01:33.2]} 36... d3 {[%clk 0:00:10.9]}
37. Qxb7+ {[%clk 0:01:33.3]} 37... Kf6 {[%clk 0:00:12.6]} 38. Qf3+ {[%clk
0:01:32.7]} 38... Ke7 {[%clk 0:00:14.1]} 39. Qg3 {[%clk 0:01:21.4]} 39... Rd5
{[%clk 0:00:13.8]} 40. Qg7 {[%clk 0:01:16.2]} 40... Rxe5 {[%clk 0:00:13.1]} 41.
Qxe5 {[%clk 0:01:16.8]} 41... Qxa3 {[%clk 0:00:07.6]} 42. Qe3 {[%clk 0:01:12.6]}
42... Qb4 {[%clk 0:00:07.2]} 43. Bxd3 {[%clk 0:01:09.5]} 43... a5 {[%clk
0:00:08.3]} 44. Bf5 {[%clk 0:01:04.3]} 44... Qd6 {[%clk 0:00:07.5]} 45. Bxe6
{[%clk 0:01:04.9]} 45... fxe6 {[%clk 0:00:09.4]} 46. Qe5 {[%clk 0:01:05.4]}
46... Qb6 {[%clk 0:00:08.2]} 47. Ra1 {[%clk 0:01:02]} 47... a4 {[%clk
0:00:07.4]} 48. Qc3 {[%clk 0:00:59]} 48... Qb5 {[%clk 0:00:07]} 49. Qa3+ {[%clk
0:00:59.5]} 49... Kf7 {[%clk 0:00:08.7]} 50. Qxa4 {[%clk 0:01:00.3]} 50... Qd5
{[%clk 0:00:10.6]} 51. Qa2 {[%clk 0:01:01]} 51... Qg5 {[%clk 0:00:11.5]} 52.
Qa7+ {[%clk 0:01:01.5]} 52... Kf6 {[%clk 0:00:12.6]} 53. Qa5 {[%clk 0:01:02.1]}
53... Qf4 {[%clk 0:00:13.3]} 54. Qa4 {[%clk 0:01:03]} 54... Qe5 {[%clk
0:00:14.3]} 55. Qa3 {[%clk 0:01:03.5]} 55... Kg6 {[%clk 0:00:15]} 56. Rf1 {[%clk
0:01:03.2]} 56... Qe4 {[%clk 0:00:16]} 57. Qg3+ {[%clk 0:01:03.6]} 57... Kf7
{[%clk 0:00:17.1]} 58. Qf3+ {[%clk 0:01:04.3]} 58... Qxf3 {[%clk 0:00:18.4]} 1-0